Workbook

Sheet List of ingredients
A1: 1 | B1: A COURSE OVERHEADS | C1: Type of unit | D1: No of units | E1: Rate per unit | F1: Costs ($$)
A2: =A1+1 -> 2 | B2: Management (ongoing) | C2: per annum salary | D2: 0.2 | E2: 70000 | F2: =E2*D2 -> 14000
A3: =A2+1 -> 3 | B3: Secretarial support (ongoing) | C3: per annum salary | D3: 0.5 | E3: 32500 | F3: =E3*D3 -> 16250
A4: 4 | B4: Recurrent costs | F4: =SUM(F2:F3) -> 30250 | G4: R
A5: 5 | B5: B DEVELOPMENT COSTS (OVERHEADS)
A6: 6 | B6: Management (during development phase) | C6: Type of unit | D6: No of units | E6: Rate per unit | F6: Costs ($$)
A7: 7 | B7: Management (development) | C7: per annum salary | D7: 0.5 | E7: 70000 | F7: =D7*E7 -> 35000
A8: 8 | B8: Secretarial support (development) | C8: per annum salary | D8: 1 | E8: 32500 | F8: =D8*E8 -> 32500
B9: C DEVELOPMENT & PRODUCTION COSTS
B10: Development Print | C10: Type of unit | D10: No of units | E10: Rate per unit | F10: Costs ($$)
A11: =A8+1 -> 9 | B11: Authoring of study guide | C11: Study guide (50 pp) | D11: 15 | E11: 1400 | F11: =E11*D11 -> 21000
A12: 10 | B12: Preparation of a Reader | C12: Reader (150 pp) | D12: 1 | E12: 900 | F12: =E12*D12 -> 900
A13: 11 | B13: Editing and design | C13: Per 50 pp | D13: 15 | E13: 600 | F13: =E13*D13 -> 9000
A14: 12 | B14: Copyright | C14: Per Study Guide | D14: 15 | E14: 1000 | F14: =E14*D14 -> 15000
A15: =#REF!+1 ->  | B15: Development of Assignments | C15: Type of unit | D15: No of units | E15: Rate per unit | F15: Costs ($$)
B16: Development of Assignments | C16: Assignment | D16: 7 | E16: 525 | F16: =E16*D16 -> 3675
B17: Total fixed costs of development | F17: =SUM(F7:F16) -> 117075 | G17: FD
B18: D MAINTENANCE COSTS (PART OF PRINTED MATERIAL ONLY)
B19: Authoring of study guide | C19: Per study guide | D19: 4 | E19: 1400 | F19: =D19*E19 -> 5600
B20: Editing and design | C20: Per study guide | D20: 4 | E20: 600 | F20: =D20*E20 -> 2400
A21: =A19+1 ->  | B21: Copyright | C21: Per study guide | D21: 4 | E21: 425 | F21: =D21*E21 -> 1700
B22: Total fixed costs of maintenance | F22: =SUM(F19:F21) -> 9700 | G22: FM
B23: Total fixed costs | F23: =F22+F17 -> 126775 | G23: F
B24: E ANNUAL PRESENTATION COSTS (all per student)
B25: Student Support | C25: Type of unit | D25: No of units | E25: Rate per unit | F25: Cost/student ($$)
B26: Marking of assignment | C26: Per assignment | D26: 7 | E26: 32 | F26: =D26*E26 -> 224
B27: Tutor (per class section of 25) | C27: Per Hour and group of 25 | D27: 25 | E27: 15.52 | F27: =D27*E27/30 -> 12.93333333
B28: Replication and Distribution | C28: Type of unit | D28: No of units | E28: Rate per unit | F28: Cost/student ($$)
B29: Production study guides | C29: Per study guide | D29: 15 | E29: 6.6 | F29: =D29*E29 -> 99
B30: Production/replication of Reader | C30: Per reader | D30: 1 | E30: 9 | F30: =D30*E30 -> 9
A31: =#REF!+1 ->  | B31: Packaging and postage | C31: Per mailing | D31: 1 | E31: 12.5 | F31: =D31*E31 -> 12.5
B32: Total variable cost per student | F32: =SUM(F26:F31) -> 357.4333333 | G32: V
B33: F INCOME (per student per credit) | F33: Income per student
B34: Fee | C34: Per credit point | D34: 3 | E34: 279 | F34: =E34*D34 -> 837 | G34: I

Sheet Calculation 145 Students
G4: Year 1 | H4: Year 2 | I4: Year 3 | J4: Year 4 | K4: Year 5 | L4: Year 6 | M4: Year 7 | N4: Year 8 | O4: Year 9 | P4: Year 10 | Q4: Total
D5: No of students | G5: 145 | H5: =G5 -> 145 | I5: =H5 -> 145 | J5: 145 | K5: 145 | L5: 145 | M5: 145 | N5: 145 | O5: 145 | P5: 145 | Q5: =SUM(G5:N5) -> 1160
D6: Accumulated | G6: =G5 -> 145 | H6: =G6+H5 -> 290 | I6: =H6+I5 -> 435 | J6: 580 | K6: 725 | L6: 870 | M6: 1015 | N6: 1160 | O6: =N6+O5 -> 1305 | P6: =O6+P5 -> 1450
E7: 30250 | F7: 30250 | G7: =E7 -> 30250 | H7: =F7 -> 30250 | I7: 30250 | J7: 30250 | K7: 30250 | L7: 30250 | M7: 30250 | N7: 30250 | O7: 30250 | P7: 30250
D8: FD depreciated | E8: ='List of ingredients'!F17 -> 117075 | F8: =E8/10 -> 11707.5 | G8: 18457.5 | H8: 18457.5 | I8: 18457.5 | J8: 18457.5 | K8: 18457.5 | L8: 18457.5 | M8: 18457.5 | N8: 18457.5 | O8: 18457.5 | P8: 18457.5
D9: FM depreciated | E9: ='List of ingredients'!F22 -> 9700 | F9: =E9/5 -> 1940 | G9: 0 | H9: 0 | I9: 0 | J9: 0 | K9: 0 | L9: 1940 | M9: 1940 | N9: 1940 | O9: 1940 | P9: 1940
D10: F depreciated | G10: =SUM(G7:G9) -> 48707.5 | H10: =SUM(H7:H9) -> 48707.5 | I10: 48707.5 | J10: 48707.5 | K10: 48707.5 | L10: 50647.5 | M10: 50647.5 | N10: 50647.5 | O10: 50647.5 | P10: 50647.5 | Q10: =SUM(G10:P10) -> 496775
D11: FD annualized | E11: 20839 | G11: 20839 | H11: 20839 | I11: 20839 | J11: 20839 | K11: 20839 | L11: 20839 | M11: 20839 | N11: 20839 | O11: 20839 | P11: 20839
D12: FM annualized | E12: 2074 | G12: 0 | H12: 0 | I12: 0 | J12: 0 | K12: 0 | L12: 2074 | M12: 2074 | N12: 2074 | O12: 2074 | P12: 2074
D13: F annualized/per year | E13: ='List of ingredients'!F23 -> 126775 | G13: =G11+G12+G7 -> 51089 | H13: =H11+H12+H7 -> 51089 | I13: 51089 | J13: 51089 | K13: 51089 | L13: 53163 | M13: 53163 | N13: 53163 | O13: 53163 | P13: 53163 | Q13: =SUM(G13:P13) -> 521260
D14: F annualized (total) | G14: 683760 | H14: 683760 | I14: 683760 | J14: 683760 | K14: 683760 | L14: 683760 | M14: 683760 | N14: 683760 | O14: 683760 | P14: 683760
D15: Aggregate unit costs | E15: ='List of ingredients'!F32 -> 357.4333333 | G15: 357.4333333 | H15: 357.4333333 | I15: 357.4333333 | J15: 357.4333333 | K15: 357.4333333 | L15: 357.4333333 | M15: 357.4333333 | N15: 357.4333333 | O15: 357.4333333 | P15: 357.4333333
D16: TC=F+VxN | G16: =G14+G15*G6 -> 735587.8333 | H16: =H14+H15*H6 -> 787415.6667 | I16: 839243.5 | J16: 891071.3333 | K16: 942899.1667 | L16: 994727 | M16: 1046554.833 | N16: 1098382.667 | O16: 1150210.5 | P16: 1202038.333
D17: AC=F/N+V | G17: =G14/G6+G15 -> 5073.01954 | H17: =H14/H6+H15 -> 2715.226437 | I17: 1929.295402 | J17: 1536.329885 | K17: 1300.550575 | L17: 1143.364368 | M17: 1031.088506 | N17: 946.8816092 | O17: 881.3873563 | P17: 828.991954
D18: Income per student | E18: ='List of ingredients'!F34 -> 837 | G18: 837 | H18: 837 | I18: 837 | J18: 837 | K18: 837 | L18: 837 | M18: 837 | N18: 837 | O18: 837 | P18: 837
D19: Income | G19: =G18*G6 -> 121365 | H19: =H18*H6 -> 242730 | I19: 364095 | J19: 485460 | K19: 606825 | L19: 728190 | M19: 849555 | N19: 970920 | O19: 1092285 | P19: 1213650
D20: Profit | G20: =G19-G16 -> -614222.8333 | H20: =H19-H16 -> -544685.6667 | I20: -475148.5 | J20: -405611.3333 | K20: -336074.1667 | L20: -266537 | M20: -196999.8333 | N20: -127462.6667 | O20: -57925.5 | P20: 11611.66667
D21: Break even point | G21: =G14/(G18-G15) -> 1425.787169
C24: Annualization
A25: Input | B25: r | C25: rate | D25: 0.0227
A26: Input | B26: n | C26: years | D26: 5
A27: Input | B27: C | C27: amount | D27: 9700
B28: (1+r) | D28: =(1+D25) -> 1.0227
B29: (1+r) n | C29: (Intermediate value) | D29: =POWER(D28,D26) -> 1.118771204
B30: a(r,n) | C30: Annualization factor | D30: =D25*D29/(D29-1) -> 0.2138237669
A31: Result | B31: C*a(r,n) | C31: Annualized amount | D31: =D30*D27 -> 2074.090539

Sheet Graph
C2: 145 Student Analysis
D3: Year 1 | E3: Year 2 | F3: Year 3 | G3: Year 4 | H3: Year 5 | I3: Year 6 | J3: Year 7 | K3: Year 8 | L3: Year 9 | M3: Year 10
C4: No of students | D4: 145 | E4: =D4 -> 145 | F4: =E4 -> 145 | G4: 145 | H4: 145 | I4: 145 | J4: 145 | K4: 145 | L4: 145 | M4: 145
C5: Accumulated | D5: =D4 -> 145 | E5: =D5+E4 -> 290 | F5: =E5+F4 -> 435 | G5: 580 | H5: 725 | I5: 870 | J5: 1015 | K5: 1160 | L5: =K5+L4 -> 1305 | M5: =L5+M4 -> 1450
C6: F annualized (total) | D6: 683760 | E6: 683760 | F6: 683760 | G6: 683760 | H6: 683760 | I6: 683760 | J6: 683760 | K6: 683760 | L6: 683760 | M6: 683760
C7: Aggregate unit costs | D7: 357.4333333 | E7: 357.4333333 | F7: 357.4333333 | G7: 357.4333333 | H7: 357.4333333 | I7: 357.4333333 | J7: 357.4333333 | K7: 357.4333333 | L7: 357.4333333 | M7: 357.4333333
C8: TC=F+VxN | D8: 735587.8333 | E8: 787415.6667 | F8: 839243.5 | G8: 891071.3333 | H8: 942899.1667 | I8: 994727 | J8: 1046554.833 | K8: 1098382.667 | L8: 1150210.5 | M8: 1202038.333
C9: AC=F/N+V | D9: 5073.01954 | E9: 2715.226437 | F9: 1929.295402 | G9: 1536.329885 | H9: 1300.550575 | I9: 1143.364368 | J9: 1031.088506 | K9: 946.8816092 | L9: 881.3873563 | M9: 828.991954
C10: Income per student | D10: 837 | E10: 837 | F10: 837 | G10: 837 | H10: 837 | I10: 837 | J10: 837 | K10: 837 | L10: 837 | M10: 837
C11: Income | D11: 121365 | E11: 242730 | F11: 364095 | G11: 485460 | H11: 606825 | I11: 728190 | J11: 849555 | K11: 970920 | L11: 1092285 | M11: 1213650
C12: Profit | D12: -614223 | E12: -544686 | F12: -475149 | G12: -405611 | H12: -336074 | I12: -266537 | J12: -197000 | K12: -127463 | L12: -57926 | M12: 11612
D48: Year 1 | E48: Year 2 | F48: Year 3 | G48: Year 4 | H48: Year 5 | I48: Year 6 | J48: Year 7 | K48: Year 8 | L48: Year 9 | M48: Year 10
C49: No of students | D49: 165 | E49: =D49 -> 165 | F49: =E49 -> 165 | G49: 165 | H49: 165 | I49: 165 | J49: 165 | K49: 165 | L49: 165 | M49: 165
C50: Accumulated | D50: =D49 -> 165 | E50: =D50+E49 -> 330 | F50: =E50+F49 -> 495 | G50: 660 | H50: 825 | I50: 990 | J50: 1155 | K50: 1320 | L50: 1485 | M50: 1650
C51: F annualized (total) | D51: 683760 | E51: 683760 | F51: 683760 | G51: 683760 | H51: 683760 | I51: 683760 | J51: 683760 | K51: 683760 | L51: 683760 | M51: 683760
C52: Aggregate unit costs | D52: 357.4333333 | E52: 357.4333333 | F52: 357.4333333 | G52: 357.4333333 | H52: 357.4333333 | I52: 357.4333333 | J52: 357.4333333 | K52: 357.4333333 | L52: 357.4333333 | M52: 357.4333333
C53: TC=F+VxN | D53: =D51+D52*D50 -> 742736.5 | E53: 801713 | F53: 860689.5 | G53: 919666 | H53: 978642.5 | I53: 1037619 | J53: 1096595.5 | K53: 1155572 | L53: 1214548.5 | M53: 1273525
C54: AC=F/N+V | D54: =D51/D50+D52 -> 4501.433333 | E54: 2429.433333 | F54: 1738.766667 | G54: 1393.433333 | H54: 1186.233333 | I54: 1048.1 | J54: 949.4333333 | K54: 875.4333333 | L54: 817.8777778 | M54: 771.8333333
C55: Income per student | D55: 837 | E55: 837 | F55: 837 | G55: 837 | H55: 837 | I55: 837 | J55: 837 | K55: 837 | L55: 837 | M55: 837
C56: Income | D56: =D55*D50 -> 138105 | E56: 276210 | F56: 414315 | G56: 552420 | H56: 690525 | I56: 828630 | J56: 966735 | K56: 1104840 | L56: 1242945 | M56: 1381050
C57: Profit | D57: =D56-D53 -> -604631.5 | E57: =E56-E53 -> -525503 | F57: -446374.5 | G57: -367246 | H57: -288117.5 | I57: -208989 | J57: -129860.5 | K57: -50732 | L57: 28396.5 | M57: 107525
C58: Break even point | D58: =D51/(D55-D52) -> 1425.787169
C94: 185 Students
D96: Year 1 | E96: Year 2 | F96: Year 3 | G96: Year 4 | H96: Year 5 | I96: Year 6 | J96: Year 7 | K96: Year 8 | L96: Year 9 | M96: Year 10
C97: No of students | D97: 185 | E97: 185 | F97: 185 | G97: 185 | H97: 185 | I97: 185 | J97: 185 | K97: 185 | L97: 185 | M97: 185
C98: Accumulated | D98: 185 | E98: 370 | F98: 555 | G98: 740 | H98: 925 | I98: 1110 | J98: 1295 | K98: 1480 | L98: 1665 | M98: 1850
D99: 30250 | E99: 30250 | F99: 30250 | G99: 30250 | H99: 30250 | I99: 30250 | J99: 30250 | K99: 30250 | L99: 30250 | M99: 30250
C100: FD depreciated | D100: 18458 | E100: 18458 | F100: 18458 | G100: 18458 | H100: 18458 | I100: 18458 | J100: 18458 | K100: 18458 | L100: 18458 | M100: 18458
C101: FM depreciated | D101: 0 | E101: 0 | F101: 0 | G101: 0 | H101: 0 | I101: 1940 | J101: 1940 | K101: 1940 | L101: 1940 | M101: 1940
C102: F depreciated | D102: 48708 | E102: 48708 | F102: 48708 | G102: 48708 | H102: 48708 | I102: 50648 | J102: 50648 | K102: 50648 | L102: 50648 | M102: 50648
C103: FD annualized | D103: 20839 | E103: 20839 | F103: 20839 | G103: 20839 | H103: 20839 | I103: 20839 | J103: 20839 | K103: 20839 | L103: 20839 | M103: 20839
C104: FM annualized | D104: 0 | E104: 0 | F104: 0 | G104: 0 | H104: 0 | I104: 2074 | J104: 2074 | K104: 2074 | L104: 2074 | M104: 2074
C105: F annualized/per year | D105: 51089 | E105: 51089 | F105: 51089 | G105: 51089 | H105: 51089 | I105: 53163 | J105: 53163 | K105: 53163 | L105: 53163 | M105: 53163
C106: F annualized (total) | D106: 683760 | E106: 683760 | F106: 683760 | G106: 683760 | H106: 683760 | I106: 683760 | J106: 683760 | K106: 683760 | L106: 683760 | M106: 683760
C107: Aggregate unit costs | D107: 357.43 | E107: 357.43 | F107: 357.43 | G107: 357.43 | H107: 357.43 | I107: 357.43 | J107: 357.43 | K107: 357.43 | L107: 357.43 | M107: 357.43
C108: TC=F+VxN | D108: 749885 | E108: 816010 | F108: 882136 | G108: 948261 | H108: 1014386 | I108: 1080511 | J108: 1146636 | K108: 1212761 | L108: 1278887 | M108: 1345012
C109: AC=F/N+V | D109: 4053 | E109: 2205 | F109: 1589 | G109: 1281 | H109: 1097 | I109: 973 | J109: 885 | K109: 819 | L109: 768 | M109: 727
C110: Income per student | D110: 837 | E110: 837 | F110: 837 | G110: 837 | H110: 837 | I110: 837 | J110: 837 | K110: 837 | L110: 837 | M110: 837
C111: Income | D111: 154845 | E111: 309690 | F111: 464535 | G111: 619380 | H111: 774225 | I111: 929070 | J111: 1083915 | K111: 1238760 | L111: 1393605 | M111: 1548450
C112: Profit | D112: -595040 | E112: -506320 | F112: -417601 | G112: -328881 | H112: -240161 | I112: -151441 | J112: -62721 | K112: 25999 | L112: 114719 | M112: 203438

Sheet Calculation 165 Students
G4: Year 1 | H4: Year 2 | I4: Year 3 | J4: Year 4 | K4: Year 5 | L4: Year 6 | M4: Year 7 | N4: Year 8 | O4: Year 9 | P4: Year 10 | Q4: Total
D5: No of students | G5: 165 | H5: =G5 -> 165 | I5: =H5 -> 165 | J5: 165 | K5: 165 | L5: 165 | M5: 165 | N5: 165 | O5: 165 | P5: 165 | Q5: =SUM(G5:N5) -> 1320
D6: Accumulated | G6: =G5 -> 165 | H6: =G6+H5 -> 330 | I6: =H6+I5 -> 495 | J6: 660 | K6: 825 | L6: 990 | M6: 1155 | N6: 1320 | O6: 1485 | P6: 1650
E7: 30250 | F7: 30250 | G7: =E7 -> 30250 | H7: =F7 -> 30250 | I7: 30250 | J7: 30250 | K7: 30250 | L7: 30250 | M7: 30250 | N7: 30250 | O7: 30250 | P7: 30250
D8: FD depreciated | E8: ='List of ingredients'!F17 -> 117075 | F8: =E8/10 -> 11707.5 | G8: 18457.5 | H8: 18457.5 | I8: 18457.5 | J8: 18457.5 | K8: 18457.5 | L8: 18457.5 | M8: 18457.5 | N8: 18457.5 | O8: 18457.5 | P8: 18457.5
D9: FM depreciated | E9: ='List of ingredients'!F22 -> 9700 | F9: =E9/5 -> 1940 | G9: 0 | H9: 0 | I9: 0 | J9: 0 | K9: 0 | L9: 1940 | M9: 1940 | N9: 1940 | O9: 1940 | P9: 1940
D10: F depreciated | G10: =SUM(G7:G9) -> 48707.5 | H10: =SUM(H7:H9) -> 48707.5 | I10: 48707.5 | J10: 48707.5 | K10: 48707.5 | L10: 50647.5 | M10: 50647.5 | N10: 50647.5 | O10: 50647.5 | P10: 50647.5 | Q10: =SUM(G10:P10) -> 496775
D11: FD annualized | E11: 20839 | G11: 20839 | H11: 20839 | I11: 20839 | J11: 20839 | K11: 20839 | L11: 20839 | M11: 20839 | N11: 20839 | O11: 20839 | P11: 20839
D12: FM annualized | E12: 2074 | G12: 0 | H12: 0 | I12: 0 | J12: 0 | K12: 0 | L12: 2074 | M12: 2074 | N12: 2074 | O12: 2074 | P12: 2074
D13: F annualized/per year | E13: ='List of ingredients'!F23 -> 126775 | G13: =G11+G12+G7 -> 51089 | H13: =H11+H12+H7 -> 51089 | I13: 51089 | J13: 51089 | K13: 51089 | L13: 53163 | M13: 53163 | N13: 53163 | O13: 53163 | P13: 53163 | Q13: =SUM(G13:P13) -> 521260
D14: F annualized (total) | G14: 683760 | H14: 683760 | I14: 683760 | J14: 683760 | K14: 683760 | L14: 683760 | M14: 683760 | N14: 683760 | O14: 683760 | P14: 683760
D15: Aggregate unit costs | E15: ='List of ingredients'!F32 -> 357.4333333 | G15: 357.4333333 | H15: 357.4333333 | I15: 357.4333333 | J15: 357.4333333 | K15: 357.4333333 | L15: 357.4333333 | M15: 357.4333333 | N15: 357.4333333 | O15: 357.4333333 | P15: 357.4333333
D16: TC=F+VxN | G16: =G14+G15*G6 -> 742736.5 | H16: =H14+H15*H6 -> 801713 | I16: 860689.5 | J16: 919666 | K16: 978642.5 | L16: 1037619 | M16: 1096595.5 | N16: 1155572 | O16: 1214548.5 | P16: 1273525
D17: AC=F/N+V | G17: =G14/G6+G15 -> 4501.433333 | H17: =H14/H6+H15 -> 2429.433333 | I17: 1738.766667 | J17: 1393.433333 | K17: 1186.233333 | L17: 1048.1 | M17: 949.4333333 | N17: 875.4333333 | O17: 817.8777778 | P17: 771.8333333
D18: Income per student | E18: ='List of ingredients'!F34 -> 837 | G18: 837 | H18: 837 | I18: 837 | J18: 837 | K18: 837 | L18: 837 | M18: 837 | N18: 837 | O18: 837 | P18: 837
D19: Income | G19: =G18*G6 -> 138105 | H19: =H18*H6 -> 276210 | I19: 414315 | J19: 552420 | K19: 690525 | L19: 828630 | M19: 966735 | N19: 1104840 | O19: 1242945 | P19: 1381050
D20: Profit | G20: =G19-G16 -> -604631.5 | H20: =H19-H16 -> -525503 | I20: -446374.5 | J20: -367246 | K20: -288117.5 | L20: -208989 | M20: -129860.5 | N20: -50732 | O20: 28396.5 | P20: 107525
D21: Break even point | G21: =G14/(G18-G15) -> 1425.787169
C24: Annualization
A25: Input | B25: r | C25: rate | D25: 0.0227
A26: Input | B26: n | C26: years | D26: 5
A27: Input | B27: C | C27: amount | D27: 9700
B28: (1+r) | D28: =(1+D25) -> 1.0227
B29: (1+r) n | C29: (Intermediate value) | D29: =POWER(D28,D26) -> 1.118771204
B30: a(r,n) | C30: Annualization factor | D30: =D25*D29/(D29-1) -> 0.2138237669
A31: Result | B31: C*a(r,n) | C31: Annualized amount | D31: =D30*D27 -> 2074.090539

Sheet Calculation 185 Students
G4: Year 1 | H4: Year 2 | I4: Year 3 | J4: Year 4 | K4: Year 5 | L4: Year 6 | M4: Year 7 | N4: Year 8 | O4: Year 9 | P4: Year 10 | Q4: Total
D5: No of students | G5: 185 | H5: =G5 -> 185 | I5: =H5 -> 185 | J5: 185 | K5: 185 | L5: 185 | M5: 185 | N5: 185 | O5: 185 | P5: 185 | Q5: =SUM(G5:N5) -> 1480
D6: Accumulated | G6: =G5 -> 185 | H6: =G6+H5 -> 370 | I6: =H6+I5 -> 555 | J6: 740 | K6: 925 | L6: 1110 | M6: 1295 | N6: 1480 | O6: 1665 | P6: 1850
E7: 30250 | F7: 30250 | G7: =E7 -> 30250 | H7: =F7 -> 30250 | I7: 30250 | J7: 30250 | K7: 30250 | L7: 30250 | M7: 30250 | N7: 30250 | O7: 30250 | P7: 30250
D8: FD depreciated | E8: ='List of ingredients'!F17 -> 117075 | F8: =E8/10 -> 11707.5 | G8: 18457.5 | H8: 18457.5 | I8: 18457.5 | J8: 18457.5 | K8: 18457.5 | L8: 18457.5 | M8: 18457.5 | N8: 18457.5 | O8: 18457.5 | P8: 18457.5
D9: FM depreciated | E9: ='List of ingredients'!F22 -> 9700 | F9: =E9/5 -> 1940 | G9: 0 | H9: 0 | I9: 0 | J9: 0 | K9: 0 | L9: 1940 | M9: 1940 | N9: 1940 | O9: 1940 | P9: 1940
D10: F depreciated | G10: =SUM(G7:G9) -> 48707.5 | H10: =SUM(H7:H9) -> 48707.5 | I10: 48707.5 | J10: 48707.5 | K10: 48707.5 | L10: 50647.5 | M10: 50647.5 | N10: 50647.5 | O10: 50647.5 | P10: 50647.5 | Q10: =SUM(G10:P10) -> 496775
D11: FD annualized | E11: 20839 | G11: 20839 | H11: 20839 | I11: 20839 | J11: 20839 | K11: 20839 | L11: 20839 | M11: 20839 | N11: 20839 | O11: 20839 | P11: 20839
D12: FM annualized | E12: 2074 | G12: 0 | H12: 0 | I12: 0 | J12: 0 | K12: 0 | L12: 2074 | M12: 2074 | N12: 2074 | O12: 2074 | P12: 2074
D13: F annualized/per year | E13: ='List of ingredients'!F23 -> 126775 | G13: =G11+G12+G7 -> 51089 | H13: =H11+H12+H7 -> 51089 | I13: 51089 | J13: 51089 | K13: 51089 | L13: 53163 | M13: 53163 | N13: 53163 | O13: 53163 | P13: 53163 | Q13: =SUM(G13:P13) -> 521260
D14: F annualized (total) | G14: 683760 | H14: 683760 | I14: 683760 | J14: 683760 | K14: 683760 | L14: 683760 | M14: 683760 | N14: 683760 | O14: 683760 | P14: 683760
D15: Aggregate unit costs | E15: ='List of ingredients'!F32 -> 357.4333333 | G15: 357.4333333 | H15: 357.4333333 | I15: 357.4333333 | J15: 357.4333333 | K15: 357.4333333 | L15: 357.4333333 | M15: 357.4333333 | N15: 357.4333333 | O15: 357.4333333 | P15: 357.4333333
D16: TC=F+VxN | G16: =G14+G15*G6 -> 749885.1667 | H16: =H14+H15*H6 -> 816010.3333 | I16: 882135.5 | J16: 948260.6667 | K16: 1014385.833 | L16: 1080511 | M16: 1146636.167 | N16: 1212761.333 | O16: 1278886.5 | P16: 1345011.667
D17: AC=F/N+V | G17: =G14/G6+G15 -> 4053.433333 | H17: =H14/H6+H15 -> 2205.433333 | I17: 1589.433333 | J17: 1281.433333 | K17: 1096.633333 | L17: 973.4333333 | M17: 885.4333333 | N17: 819.4333333 | O17: 768.1 | P17: 727.0333333
D18: Income per student | E18: ='List of ingredients'!F34 -> 837 | G18: 837 | H18: 837 | I18: 837 | J18: 837 | K18: 837 | L18: 837 | M18: 837 | N18: 837 | O18: 837 | P18: 837
D19: Income | G19: =G18*G6 -> 154845 | H19: =H18*H6 -> 309690 | I19: 464535 | J19: 619380 | K19: 774225 | L19: 929070 | M19: 1083915 | N19: 1238760 | O19: 1393605 | P19: 1548450
D20: Profit | G20: =G19-G16 -> -595040.1667 | H20: =H19-H16 -> -506320.3333 | I20: -417600.5 | J20: -328880.6667 | K20: -240160.8333 | L20: -151441 | M20: -62721.16667 | N20: 25998.66667 | O20: 114718.5 | P20: 203438.3333
D21: Break even point | G21: =G14/(G18-G15) -> 1425.787169
C24: Annualization
A25: Input | B25: r | C25: rate | D25: 0.0227
A26: Input | B26: n | C26: years | D26: 5
A27: Input | B27: C | C27: amount | D27: 9700
B28: (1+r) | D28: =(1+D25) -> 1.0227
B29: (1+r) n | C29: (Intermediate value) | D29: =POWER(D28,D26) -> 1.118771204
B30: a(r,n) | C30: Annualization factor | D30: =D25*D29/(D29-1) -> 0.2138237669
A31: Result | B31: C*a(r,n) | C31: Annualized amount | D31: =D30*D27 -> 2074.090539

Sheet Sheet1
